fUSD/lending_fUSD_20260217
["ID","MTS","AMOUNT","RATE_DAILY","PERIOD"]
[405782627,1771303894054,500.0,7.899e-05,2]
[405782628,1771303894093,500.0,7.899e-05,2]
[405782629,1771303894130,500.0,7.899e-05,2]
[405782630,1771303894171,494.94029985,7.899e-05,2]
[405782631,1771303894251,500.0,7.899e-05,2]
[405782632,1771303894350,5.07970015,7.899e-05,2]
[405782638,1771304535466,500.0,0.000153,30]
[405782639,1771304576428,-4043.233,8.624e-05,2]
[405782640,1771304576456,-344.494,8.624e-05,2]
[405782641,1771304576486,-365.13726384,8.624e-05,2]
[405782642,1771304576515,-129.14420849,8.662e-05,2]
[405782643,1771304579212,-235.99305534,8.662e-05,2]
[405782644,1771304579241,-250.0,8.662e-05,2]
[405782645,1771304579269,-151.0,8.697e-05,2]
[405782646,1771304579299,-289.49163014,8.7e-05,2]
[405782647,1771304579329,-352.26286371,8.7e-05,2]
[405782648,1771304579358,-373.18660823,8.7e-05,2]
[405782649,1771304579387,-394.11035276,8.7e-05,2]
[405782650,1771304579414,-222.0,8.7e-05,2]
[405782651,1771304579579,-5463.92097964,8.7e-05,2]
[405782652,1771304585278,-300.0,8.699e-05,2]
[405782653,1771304585312,-150.0,8.699e-05,2]
[405782654,1771304585372,-9100.01,8.7e-05,2]
[405782655,1771304588431,-10000.01,8.7e-05,2]
[405782656,1771304594336,-10000.01,8.7e-05,2]
[405782657,1771304652608,150.0,0.000203,120]
[405782658,1771304674947,150.34,8.102e-05,2]
[405782671,1771304905511,-303.40108436,8.599e-05,2]
[405782672,1771304905541,-253.45728811,8.599e-05,2]
[405782673,1771304905574,-173.31843143,8.599e-05,2]
[405782674,1771304905607,-624.44880794,8.599e-05,2]
[405782675,1771304905636,-341.92087303,8.599e-05,2]
[405782676,1771304905664,-562.38554082,8.599e-05,2]
[405782677,1771304905702,-500.0,8.599e-05,2]
[405782678,1771304905731,-406.5836569,8.599e-05,2]
[405782679,1771304905759,-510.27609923,8.599e-05,2]
[405782680,1771304905792,-500.0,8.599e-05,2]
[405782681,1771304905824,-500.0,8.599e-05,2]
[405782682,1771304905858,-148.42643636,8.599e-05,2]
[405782683,1771304906078,-351.57356364,8.599e-05,2]
[405782684,1771304906116,-500.0,8.599e-05,2]
[405782685,1771304906148,-494.92229985,8.599e-05,2]
[405782686,1771304906177,-189.58150033,8.599e-05,2]
[405782687,1771304906205,-250.0,8.599e-05,2]
[405782688,1771304906233,-303.40108436,8.6e-05,2]
[405782689,1771304906262,-2738.3745982,8.6e-05,2]
[405782690,1771304906574,-351.57356364,8.6e-05,2]
[405782691,1771304906589,-344.30390724,8.6e-05,2]
[405782692,1771304908543,-10000.01,8.6e-05,2]
[405782693,1771304911319,-10000.01,8.6e-05,2]
[405782694,1771304917361,-10000.01,8.6e-05,2]
[405782695,1771304923408,-10000.01,8.6e-05,2]
[405782696,1771304947653,804.638665,7.945e-05,2]
[405782697,1771305031849,-2833.23190387,8.599e-05,2]
[405782698,1771305031956,-337.92889973,8.599e-05,2]
[405782699,1771305031967,-150.0,8.599e-05,2]
[405782700,1771305031978,-300.0,8.599e-05,2]
[405782701,1771305031988,-1200.0,8.599e-05,2]
[405782702,1771305031998,-300.0,8.599e-05,2]
[405782703,1771305032009,-221.0,8.599e-05,2]
[405782704,1771305032019,-1451724.2489787,8.6e-05,2]
[405782705,1771305032032,-122075.29975693,8.6e-05,2]
[405782706,1771305032044,-34994.70253334,8.6e-05,2]
[405782707,1771305032058,-20875.69494779,8.6e-05,2]
[405782708,1771305032072,-1367.37507571,8.6e-05,2]
[405782709,1771305038311,-1828266.76123665,8.6e-05,2]
[405782710,1771305038321,-2500.0,8.6e-05,2]
[405782711,1771305038331,-303.40108436,8.6e-05,2]
[405782712,1771305038341,-227.20890356,8.6e-05,2]
[405782713,1771305038351,-4129.358,8.6e-05,2]
[405782714,1771305038361,-89451.1427,8.6e-05,2]
[405782715,1771305038372,-10358.54977706,8.6e-05,2]
[405782716,1771305038382,-300.85469988,8.65e-05,2]
[405782718,1771305038392,-6737.6189,8.7e-05,2]
[405782720,1771305038402,-500.0,8.7e-05,2]
[405782721,1771305038412,-1485.7611846,8.899e-05,2]
[405782724,1771305038423,-3385.08240455,8.9e-05,2]
[405782725,1771305038436,-5002.62360683,8.9e-05,2]
[405782727,1771305038458,-4193.85300569,8.9e-05,2]
[405782728,1771305038475,-5811.39420797,8.9e-05,2]
[405782729,1771305038486,-5811.39420797,8.9e-05,2]
[405782730,1771305038495,-32850.4601,9.05e-05,2]
[405782731,1771305038507,-837407.5056,9.05e-05,2]
[405782732,1771305038518,-231.059898,9.091e-05,2]
[405782733,1771305038528,-246480.64243569,9.133e-05,2]
[405782734,1771305038538,-1600.0,9.224e-05,2]
[405782735,1771305038547,-2228.04,9.34e-05,2]
[405782736,1771305038557,-194.2424953,9.459e-05,2]
[405782737,1771305038566,-250.0,9.459e-05,2]
[405782738,1771305038576,-193.0,9.459e-05,2]
[405782739,1771305038586,-255.0,9.459e-05,2]
[405782740,1771305038597,-420.0,9.459e-05,2]
[405782741,1771305038612,-1680.0,9.459e-05,2]
[405782742,1771305038622,-250.0,9.46e-05,2]
[405782743,1771305038633,-1852.42,9.468e-05,2]
[405782744,1771305038645,-247.98585,9.5e-05,2]
[405782745,1771305038660,-999.99,9.5e-05,2]
[405782746,1771305038672,-9999.99,9.5e-05,2]
[405782747,1771305038683,-499.99,9.5e-05,2]
[405782748,1771305038694,-150.99,9.5e-05,2]
[405782749,1771305038703,-9999.99,9.5e-05,2]
[405782750,1771305038712,-299.99,9.5e-05,2]
[405782751,1771305038721,-150.99,9.569e-05,2]
[405782752,1771305038731,-9999.99,9.569e-05,2]
[405782753,1771305038740,-9999.99,9.569e-05,2]
[405782754,1771305038749,-7823.0,9.569e-05,2]
[405782755,1771305038759,-9999.99,9.67e-05,2]
[405782756,1771305038769,-500.0,9.739e-05,2]
[405782757,1771305038782,-607.30446293,9.785e-05,2]
[405782758,1771305038792,-500.0,9.956e-05,2]
[405782759,1771305038803,-150.0,9.956e-05,2]
[405782760,1771305038815,-500.0,9.956e-05,2]
[405782761,1771305038826,-500.0,9.956e-05,2]
[405782762,1771305038839,-500.0,9.956e-05,2]
[405782763,1771305038849,-500.0,9.956e-05,2]
[405782764,1771305038860,-500.0,9.956e-05,2]
[405782765,1771305038869,-237.28842339,9.956e-05,2]
[405782766,1771305038878,-500.0,9.956e-05,2]
[405782767,1771305038887,-500.0,9.956e-05,2]
[405782768,1771305038897,-500.0,9.956e-05,2]
[405782769,1771305038907,-150.31509327,9.956e-05,2]
[405782770,1771305038917,-500.0,9.956e-05,2]
[405782771,1771305038927,-500.0,9.956e-05,2]
[405782772,1771305038936,-1762.03567864,9.977e-05,2]
[405782773,1771305038946,-151.0,0.0001,2]
[405782774,1771305038955,-151.0,0.0001,2]
[405782775,1771305038965,-151.0,0.0001,2]
[405782776,1771305038974,-174.44086209,0.0001,2]
[405782777,1771305038983,-174.44086209,0.0001,2]
[405782778,1771305038992,-1488.83065608,0.0001,2]
[405782779,1771305039001,-151.0,0.0001,2]
[405782780,1771305039012,-151.0,0.0001,2]
[405782781,1771305039023,-151.0,0.0001,2]
[405782782,1771305039035,-151.0,0.0001,2]
[405782783,1771305039045,-151.0,0.0001,2]
[405782784,1771305039055,-151.0,0.0001,2]
[405782785,1771305039064,-151.0,0.0001,2]
[405782786,1771305039073,-151.0,0.0001,2]
[405782787,1771305039083,-151.0,0.0001,2]
[405782788,1771305039092,-151.0,0.0001,2]
[405782789,1771305039102,-151.0,0.0001,2]
[405782790,1771305039111,-151.0,0.0001,2]
[405782791,1771305039121,-151.0,0.0001,2]
[405782792,1771305039130,-151.0,0.0001,2]
[405782793,1771305039140,-151.0,0.0001,2]
[405782794,1771305039149,-151.0,0.0001,2]
[405782795,1771305039158,-151.0,0.0001,2]
[405782796,1771305039167,-151.0,0.0001,2]
[405782797,1771305039177,-151.0,0.0001,2]
[405782798,1771305039187,-151.0,0.0001,2]
[405782799,1771305039195,-274.0,0.0001,2]
[405782800,1771305039205,-274.0,0.0001,2]
[405782801,1771305039214,-276.85061866,0.0001,2]
[405782802,1771305039223,-763.92788936,0.0001,2]
[405782803,1771305039232,-763.92788936,0.0001,2]
[405782804,1771305039241,-151.2254874,0.00010011,2]
[405782805,1771305039251,-502.16866536,0.00010011,2]
[405782806,1771305039260,-500.0,0.00010011,2]
[405782807,1771305039269,-500.0,0.00010011,2]
[405782808,1771305039278,-500.0,0.00010011,2]
[405782809,1771305039287,-500.0,0.00010011,2]
[405782810,1771305039296,-500.0,0.00010011,2]
[405782811,1771305039306,-500.0,0.00010011,2]
[405782812,1771305039315,-500.0,0.00010011,2]
[405782813,1771305039324,-500.0,0.00010011,2]
[405782814,1771305039333,-500.0,0.00010011,2]
[405782815,1771305039342,-500.0,0.00010066,2]
[405782816,1771305039351,-500.0,0.00010066,2]
[405782817,1771305039361,-154.49885719,0.00010066,2]
[405782818,1771305039370,-220.15883999,0.00010066,2]
[405782819,1771305039379,-500.0,0.00010066,2]
[405782820,1771305039389,-500.0,0.00010066,2]
[405782821,1771305039398,-500.0,0.00010066,2]
[405782822,1771305039407,-500.0,0.00010066,2]
[405782823,1771305039417,-616.5683879,0.00010066,2]
[405782824,1771305039427,-395.82992524,0.000101,2]
[405782825,1771305039436,-500.0,0.0001012,2]
[405782826,1771305039445,-178.36591542,0.0001012,2]
[405782827,1771305039456,-500.0,0.0001012,2]
[405782828,1771305039465,-500.0,0.0001012,2]
[405782829,1771305039475,-500.0,0.0001012,2]
[405782830,1771305039484,-500.0,0.0001012,2]
[405782831,1771305039494,-329.95129651,0.00010175,2]
[405782832,1771305039503,-500.0,0.00010175,2]
[405782833,1771305039514,-500.0,0.00010175,2]
[405782834,1771305039523,-500.0,0.00010175,2]
[405782835,1771305039534,-500.0,0.00010175,2]
[405782836,1771305039543,-634.14220616,0.0001019,2]
[405782837,1771305039552,-1417.897816,0.0001023,2]
[405782838,1771305039561,-150.0,0.0001023,2]
[405782839,1771305039570,-244.183284,0.0001023,2]
[405782840,1771305039580,-338.366569,0.0001023,2]
[405782841,1771305039589,-432.549854,0.0001023,2]
[405782842,1771305039598,-526.733139,0.0001023,2]
[405782843,1771305039608,-620.916424,0.0001023,2]
[405782844,1771305039621,-715.099709,0.0001023,2]
[405782845,1771305039630,-809.282994,0.0001023,2]
[405782846,1771305039640,-903.466279,0.0001023,2]
[405782847,1771305039650,-997.649564,0.0001023,2]
[405782848,1771305039661,-500.0,0.0001023,2]
[405782849,1771305039671,-500.0,0.0001023,2]
[405782850,1771305039680,-500.0,0.0001023,2]
[405782851,1771305039690,-500.0,0.0001023,2]
[405782852,1771305039700,-500.0,0.0001023,2]
[405782853,1771305039709,-500.0,0.00010285,2]
[405782854,1771305039719,-500.0,0.00010285,2]
[405782855,1771305039728,-500.0,0.00010285,2]
[405782856,1771305039737,-500.0,0.00010285,2]
[405782857,1771305039747,-500.0,0.0001034,2]
[405782858,1771305039756,-500.0,0.0001034,2]
[405782859,1771305039765,-500.0,0.0001034,2]
[405782860,1771305039775,-500.0,0.0001034,2]
[405782861,1771305039784,-1600.0,0.00010377,2]
[405782862,1771305039793,-500.0,0.00010394,2]
[405782863,1771305039803,-500.0,0.00010394,2]
[405782864,1771305039812,-500.0,0.00010394,2]
[405782865,1771305039821,-500.0,0.00010394,2]
[405782866,1771305039831,-433.0,0.00010405,2]
[405782867,1771305039840,-587.0,0.00010405,2]
[405782868,1771305039850,-2351.0,0.00010405,2]
[405782869,1771305039859,-1500.0,0.00010418,2]
[405782870,1771305039869,-500.0,0.00010449,2]
[405782871,1771305039878,-500.0,0.00010449,2]
[405782872,1771305039887,-500.0,0.00010449,2]
[405782873,1771305039897,-500.0,0.00010449,2]
[405782874,1771305039907,-166.66,0.00010488,2]
[405782875,1771305039916,-500.0,0.00010504,2]
[405782876,1771305039926,-500.0,0.00010504,2]
[405782877,1771305039935,-500.0,0.00010504,2]
[405782878,1771305039945,-500.0,0.00010504,2]
[405782879,1771305039954,-500.0,0.00010504,2]
[405782880,1771305039964,-500.0,0.00010559,2]
[405782881,1771305039973,-500.0,0.00010559,2]
[405782883,1771305039983,-361.9355564,0.00010559,2]
[405782885,1771305039992,-500.0,0.00010559,2]
[405782886,1771305040002,-224.65460803,0.00010614,2]
[405782887,1771305040011,-500.0,0.00010614,2]
[405782888,1771305040020,-500.0,0.00010614,2]
[405782889,1771305040030,-500.0,0.00010668,2]
[405782890,1771305040039,-498.26652801,0.00010668,2]
[405782891,1771305040049,-611.76249723,0.00010723,2]
[405782892,1771305040059,-500.0,0.00010778,2]
[405782893,1771305040069,-166.66,0.00010835,2]
[405782894,1771305040078,-838.61447056,0.00010867,2]
[405782895,1771305040087,-5300.13656816,0.000109,2]
[405782896,1771305040097,-5300.13656815,0.000109,2]
[405782897,1771305040107,-2145.41,0.00010959,2]
[405782898,1771305040116,-1551.84,0.00010959,2]
[405782899,1771305040125,-164.61380668,0.00010973,2]
[405782900,1771305040134,-500.0,0.00010973,2]
[405782901,1771305040143,-500.81972658,0.00010973,2]
[405782902,1771305040152,-160.37289206,0.00010973,2]
[405782903,1771305040162,-239.8459294,0.00010973,2]
[405782904,1771305040171,-226.12222085,0.00010973,2]
[405782905,1771305040180,-502.12798245,0.00010973,2]
[405782906,1771305040190,-500.86147052,0.00010973,2]
[405782907,1771305040199,-500.0,0.00010973,2]
[405782908,1771305040209,-501.16029055,0.00010973,2]
[405782909,1771305040218,-500.0,0.00010973,2]
[405782910,1771305040227,-500.0,0.00010973,2]
[405782911,1771305040237,-503.06752739,0.00010973,2]
[405782912,1771305040257,-500.32111708,0.00010973,2]
[405782913,1771305040281,-500.0,0.00011052,2]
[405782914,1771305040292,-23617.03509142,0.00011099,2]
[405782915,1771305040303,-23617.03509136,0.00011099,2]
[405782916,1771305040313,-23617.03509136,0.00011099,2]
[405782917,1771305040324,-23617.03509136,0.00011099,2]
[405782918,1771305040334,-23617.03509136,0.00011099,2]
[405782919,1771305040345,-7646.21367119,0.00011099,2]
[405782920,1771305040355,-7646.21367114,0.00011099,2]
[405782921,1771305040364,-7646.21367114,0.00011099,2]
[405782922,1771305040376,-7646.21367114,0.00011099,2]
[405782923,1771305040386,-7646.21367114,0.00011099,2]
[405782924,1771305040397,-7646.21367114,0.00011099,2]
[405782925,1771305040407,-7646.21367114,0.00011099,2]
[405782926,1771305040417,-7646.21367114,0.00011099,2]
[405782927,1771305040428,-7646.21367114,0.00011099,2]
[405782928,1771305040438,-166.66,0.00011181,2]
[405782929,1771305040449,-5300.13656815,0.00011186,2]
[405782930,1771305040460,-23617.03509136,0.00011277,2]
[405782931,1771305040471,-504.47430688,0.00011326,2]
[405782932,1771305040481,-250.0,0.00011362,2]
[405782933,1771305040490,-7646.21367114,0.00011396,2]
[405782934,1771305040499,-736.0,0.00011445,2]
[405782935,1771305040509,-823.0,0.00011445,2]
[405782936,1771305040518,-3292.0,0.00011445,2]
[405782937,1771305040528,-500.97291215,0.00011521,2]
[405782938,1771305040539,-1000.0,0.00011521,2]
[405782939,1771305040548,-1000.0,0.00011521,2]
[405782940,1771305040559,-502.71949542,0.00011521,2]
[405782941,1771305040569,-166.66,0.00011527,2]
[405782942,1771305040580,-1600.0,0.0001153,2]
[405782944,1771305040592,-13815.73,0.00011757,2]
[405782945,1771305040604,-23617.03509136,0.00011832,2]
[405782947,1771305040623,-166.66,0.00011873,2]
[405782949,1771305040634,-151.0,0.00011897,2]
[405782950,1771305040645,-30336.8,0.00012055,2]
[405782951,1771305040656,-1500.0,0.00012068,2]
[405782952,1771305040667,-1500.0,0.00012068,2]
[405782953,1771305040678,-166.66,0.0001222,2]
[405782954,1771305040690,-1772.37227,0.00012276,2]
[405782955,1771305040702,-7172.809781,0.00012276,2]
[405782956,1771305040712,-23617.03509136,0.00012387,2]
[405782957,1771305040723,-5300.13656815,0.00012529,2]
[405782958,1771305040733,-848.0,0.00012589,2]
[405782959,1771305040743,-1152.0,0.0001259,2]
[405782960,1771305040755,-4609.0,0.0001259,2]
[405782961,1771305040767,-2000.0,0.00012616,2]
[405782962,1771305040776,-368.72151799,0.00012616,2]
[405782963,1771305040786,-1600.0,0.00012683,2]
[405782964,1771305040797,-23617.03509136,0.00012943,2]
[405782965,1771305040807,-2500.0,0.00013164,2]
[405782966,1771305040818,-227.20890354,0.000132,2]
[405782967,1771305040828,-10358.54977704,0.000132,2]
[405782968,1771305040838,-1488.83065607,0.0001325,2]
[405782969,1771305040849,-23617.03509136,0.00013498,2]
[405782970,1771305040858,-500.0,0.00013595,2]
[405782971,1771305040868,-500.0,0.00013595,2]
[405782972,1771305040879,-586.96513288,0.00013595,2]
[405782973,1771305040889,-10000.0,0.00013598,2]
[405782974,1771305040900,-4587.476,0.00013598,2]
[405782975,1771305040910,-156.268,0.00013697,2]
[405782976,1771305040921,-506.79858148,0.00013698,2]
[405782977,1771305040931,-535.55684817,0.00013698,2]
[405782978,1771305040942,-500.0,0.00013698,2]
[405782979,1771305040951,-500.0,0.00013698,2]
[405782980,1771305040961,-500.0,0.00013698,2]
[405782981,1771305040970,-639.90682726,0.00013698,2]
[405782982,1771305040979,-500.0,0.00013698,2]
[405782983,1771305040988,-500.0,0.00013698,2]
[405782984,1771305040998,-500.0,0.00013698,2]
[405782985,1771305041008,-500.0,0.00013698,2]
[405782986,1771305041017,-500.0,0.00013698,2]
[405782987,1771305041026,-500.0,0.00013698,2]
[405782988,1771305041036,-500.0,0.00013698,2]
[405782989,1771305041045,-500.0,0.00013698,2]
[405782990,1771305041056,-500.0,0.00013698,2]
[405782991,1771305041065,-154.45149982,0.00013698,2]
[405782992,1771305041075,-679.08,0.00013698,2]
[405782993,1771305041084,-679.08,0.00013698,2]
[405782994,1771305041093,-679.08,0.00013698,2]
[405782995,1771305041103,-679.08,0.00013698,2]
[405782996,1771305041112,-679.08,0.00013698,2]
[405782997,1771305041121,-679.08,0.00013698,2]
[405782998,1771305041131,-679.08,0.00013698,2]
[405782999,1771305041140,-679.08,0.00013698,2]
[405783000,1771305041150,-679.08,0.00013698,2]
[405783001,1771305041159,-679.08,0.00013698,2]
[405783002,1771305041168,-679.08,0.00013698,2]
[405783003,1771305041177,-679.08,0.00013698,2]
[405783004,1771305041187,-679.08,0.00013698,2]
[405783005,1771305041197,-679.08,0.00013698,2]
[405783006,1771305041206,-679.08,0.00013698,2]
[405783007,1771305041215,-679.08,0.00013698,2]
[405783008,1771305041224,-679.08,0.00013698,2]
[405783009,1771305041234,-679.08,0.00013698,2]
[405783010,1771305041243,-679.08,0.00013698,2]
[405783011,1771305041252,-679.08,0.00013698,2]
[405783012,1771305041261,-679.08,0.00013698,2]
[405783013,1771305041271,-679.08,0.00013698,2]
[405783014,1771305041280,-679.08,0.00013698,2]
[405783015,1771305041289,-679.22619195,0.00013698,2]
[405783016,1771305041298,-349.69131006,0.00013698,2]
[405783017,1771305041308,-1125.16,0.00013698,2]
[405783018,1771305041317,-1125.16,0.00013698,2]
[405783019,1771305041326,-1125.16,0.00013698,2]
[405783020,1771305041336,-1125.16,0.00013698,2]
[405783021,1771305041345,-1125.16,0.00013698,2]
[405783022,1771305041355,-500.0,0.00013698,2]
[405783023,1771305041365,-1125.16,0.00013698,2]
[405783024,1771305041375,-500.0,0.00013698,2]
[405783025,1771305041384,-1125.16,0.00013698,2]
[405783026,1771305041394,-500.0,0.00013698,2]
[405783027,1771305041403,-1125.16,0.00013698,2]
[405783028,1771305041412,-500.0,0.00013698,2]
[405783029,1771305041422,-1125.16,0.00013698,2]
[405783030,1771305041431,-511.5660924,0.00013698,2]
[405783031,1771305041441,-1125.16,0.00013698,2]
[405783032,1771305041450,-1125.16,0.00013698,2]
[405783033,1771305041459,-1125.16,0.00013698,2]
[405783034,1771305041469,-1125.16,0.00013698,2]
[405783035,1771305041478,-1125.16,0.00013698,2]
[405783036,1771305041487,-1125.16,0.00013698,2]
[405783037,1771305041496,-1125.16,0.00013698,2]
[405783038,1771305041505,-1125.16,0.00013698,2]
[405783039,1771305041514,-1125.16,0.00013698,2]
[405783040,1771305041524,-1125.16,0.00013698,2]
[405783041,1771305041533,-456.05800986,0.00013698,2]
[405783042,1771305041542,-500.0,0.00013698,2]
[405783043,1771305041551,-500.0,0.00013698,2]
[405783044,1771305041561,-500.0,0.00013698,2]
[405783045,1771305041570,-500.0,0.00013698,2]
[405783046,1771305041580,-500.0,0.00013698,2]
[405783047,1771305041589,-500.0,0.00013698,2]
[405783048,1771305041598,-529.40507312,0.00013698,2]
[405783049,1771305041610,-500.0,0.00013698,2]
[405783050,1771305041619,-500.0,0.00013698,2]
[405783051,1771305041628,-500.0,0.00013698,2]
[405783052,1771305041637,-500.0,0.00013698,2]
[405783053,1771305041646,-500.0,0.00013698,2]
[405783054,1771305041658,-430.55674509,0.00013698,2]
[405783055,1771305041667,-915.21,0.00013698,2]
[405783056,1771305041678,-915.21,0.00013698,2]
[405783057,1771305041687,-915.21,0.00013698,2]
[405783058,1771305041697,-915.21,0.00013698,2]
[405783059,1771305041706,-915.21,0.00013698,2]
[405783060,1771305041716,-915.21,0.00013698,2]
[405783061,1771305041726,-915.21,0.00013698,2]
[405783062,1771305041736,-915.21,0.00013698,2]
[405783063,1771305041745,-915.21,0.00013698,2]
[405783064,1771305042038,-915.21,0.00013698,2]
[405783065,1771305042048,-915.21,0.00013698,2]
[405783066,1771305042057,-915.21,0.00013698,2]
[405783067,1771305042071,-915.21,0.00013698,2]
[405783068,1771305042081,-915.21,0.00013698,2]
[405783069,1771305042091,-915.21,0.00013698,2]
[405783070,1771305042101,-915.21,0.00013698,2]
[405783071,1771305042111,-915.21,0.00013698,2]
[405783072,1771305042121,-915.21,0.00013698,2]
[405783073,1771305042130,-915.21,0.00013698,2]
[405783074,1771305042140,-915.21,0.00013698,2]
[405783075,1771305042149,-915.21,0.00013698,2]
[405783076,1771305042159,-915.21,0.00013698,2]
[405783077,1771305042169,-915.21,0.00013698,2]
[405783078,1771305042178,-915.2263384,0.00013698,2]
[405783079,1771305042188,-500.0,0.00013698,2]
[405783080,1771305042199,-500.0,0.00013698,2]
[405783081,1771305042209,-500.0,0.00013698,2]
[405783082,1771305042218,-307.44205355,0.00013698,2]
[405783083,1771305042228,-500.0,0.00013698,2]
[405783084,1771305042238,-500.0,0.00013698,2]
[405783085,1771305042247,-500.0,0.00013698,2]
[405783086,1771305042257,-500.0,0.00013698,2]
[405783087,1771305042266,-500.0,0.00013698,2]
[405783088,1771305042276,-500.0,0.00013698,2]
[405783089,1771305042285,-500.0,0.00013698,2]
[405783090,1771305042295,-500.0,0.00013698,2]
[405783091,1771305042305,-500.0,0.00013698,2]
[405783092,1771305042314,-500.0,0.00013698,2]
[405783093,1771305042323,-500.0,0.00013698,2]
[405783094,1771305042333,-500.0,0.00013698,2]
[405783095,1771305042342,-500.0,0.00013698,2]
[405783096,1771305042352,-500.0,0.00013698,2]
[405783097,1771305042363,-500.0,0.00013698,2]
[405783098,1771305042373,-500.0,0.00013698,2]
[405783099,1771305042382,-500.0,0.00013698,2]
[405783100,1771305042392,-500.0,0.00013698,2]
[405783101,1771305042401,-500.0,0.00013698,2]
[405783102,1771305042411,-500.0,0.00013698,2]
[405783103,1771305042420,-500.0,0.00013698,2]
[405783104,1771305042435,-500.0,0.00013698,2]
[405783105,1771305042446,-500.0,0.00013698,2]
[405783106,1771305042456,-500.0,0.00013698,2]
[405783107,1771305042465,-500.0,0.00013698,2]
[405783108,1771305042475,-500.0,0.00013698,2]
[405783109,1771305042484,-500.0,0.00013698,2]
[405783110,1771305042494,-500.0,0.00013698,2]
[405783111,1771305042504,-500.0,0.00013698,2]
[405783112,1771305042513,-500.0,0.00013698,2]
[405783113,1771305042523,-500.0,0.00013698,2]
[405783114,1771305042532,-500.0,0.00013698,2]
[405783115,1771305042543,-500.0,0.00013698,2]
[405783116,1771305042552,-500.0,0.00013698,2]
[405783117,1771305042562,-500.0,0.00013698,2]
[405783118,1771305042571,-286.9609652,0.00013698,2]
[405783119,1771305042581,-503.24510855,0.00013698,2]
[405783120,1771305042591,-500.0,0.00013698,2]
[405783121,1771305042601,-500.0,0.00013698,2]
[405783122,1771305042614,-500.0,0.00013698,2]
[405783123,1771305042623,-500.0,0.00013698,2]
[405783124,1771305042632,-500.0,0.00013698,2]
[405783125,1771305042642,-500.0,0.00013698,2]
[405783126,1771305042651,-500.0,0.00013698,2]
[405783127,1771305042661,-500.0,0.00013698,2]
[405783128,1771305042670,-500.0,0.00013698,2]
[405783129,1771305042681,-500.0,0.00013698,2]
[405783130,1771305042690,-500.0,0.00013698,2]
[405783131,1771305042700,-500.0,0.00013698,2]
[405783132,1771305042710,-500.0,0.00013698,2]
[405783133,1771305042720,-500.0,0.00013698,2]
[405783134,1771305042729,-500.0,0.00013698,2]
[405783135,1771305042739,-500.0,0.00013698,2]
[405783136,1771305042748,-161.76553767,0.00013698,2]
[405783137,1771305042758,-500.0,0.00013698,2]
[405783138,1771305042768,-500.0,0.00013698,2]
[405783139,1771305042777,-500.0,0.00013698,2]
[405783140,1771305042787,-205.75338066,0.00013698,2]
[405783141,1771305042802,-500.0,0.00013698,2]
[405783142,1771305042812,-500.0,0.00013698,2]
[405783143,1771305042822,-400.27334963,0.00013698,2]
[405783144,1771305042831,-500.0,0.00013698,2]
[405783145,1771305042841,-500.0,0.00013698,2]
[405783146,1771305042851,-500.0,0.00013698,2]
[405783147,1771305042861,-500.0,0.00013698,2]
[405783148,1771305042870,-500.0,0.00013698,2]
[405783149,1771305042880,-500.0,0.00013698,2]
[405783150,1771305042889,-500.0,0.00013698,2]
[405783151,1771305042899,-500.0,0.00013698,2]
[405783152,1771305042909,-500.0,0.00013698,2]
[405783153,1771305042919,-500.0,0.00013698,2]